fUST/lending_fUST_20250515
["ID","MTS","AMOUNT","RATE_DAILY","PERIOD"]
[361124787,1747288236682,-450.0,0.00024767,2]
[361124788,1747288236696,-450.0,0.00024767,2]
[361124789,1747288236707,-450.0,0.00024767,2]
[361124790,1747288236717,-450.0,0.00024767,2]
[361124791,1747288236729,-450.0,0.00024767,2]
[361124792,1747288236739,-450.0,0.00024767,2]
[361124793,1747288236750,-450.0,0.00024767,2]
[361124794,1747288236760,-450.0,0.00024767,2]
[361124795,1747288236769,-450.0,0.00024767,2]
[361124796,1747288236779,-450.0,0.00024767,2]
[361124797,1747288236788,-450.0,0.00024767,2]
[361124798,1747288236798,-450.0,0.00024767,2]
[361124799,1747288236807,-450.0,0.00024767,2]
[361124800,1747288236816,-450.0,0.00024767,2]
[361124801,1747288236826,-450.0,0.00024767,2]
[361124802,1747288236835,-450.0,0.00024767,2]
[361124803,1747288236845,-450.0,0.00024767,2]
[361124804,1747288236854,-450.0,0.00024767,2]
[361124805,1747288236864,-450.0,0.00024767,2]
[361124806,1747288236873,-450.0,0.00024767,2]
[361124807,1747288236883,-450.0,0.00024767,2]
[361124808,1747288236892,-450.0,0.00024767,2]
[361124809,1747288236901,-1978.2,0.00024767,2]
[361124810,1747288236911,-450.0,0.00024767,2]
[361124811,1747288236920,-353.73657353,0.00024767,2]
[361124812,1747288236930,-450.0,0.00024767,2]
[361124813,1747288236941,-450.0,0.00024767,2]
[361124814,1747288236951,-450.0,0.00024767,2]
[361124815,1747288236960,-502.34198133,0.00024767,2]
[361124816,1747288236972,-545.19561955,0.00024767,2]
[361124817,1747288236985,-450.0,0.00024767,2]
[361124818,1747288236996,-745.19,0.00024767,2]
[361124819,1747288237006,-450.0,0.00024767,2]
[361124820,1747288237016,-39776.33987763,0.00024776,3]
[361124821,1747288237025,-160.0,0.00024776,3]
[361124822,1747288237035,-600.0,0.00024873,2]
[361124823,1747288237044,-500.0,0.00024873,2]
[361124824,1747288237055,-450.0,0.00024876,2]
[361124825,1747288237064,-450.0,0.00024876,2]
[361124826,1747288237074,-450.0,0.00024876,2]
[361124827,1747288237084,-222.13,0.00024876,2]
[361124828,1747288237093,-220.23940414,0.00024876,2]
[361124829,1747288237102,-450.0,0.00024876,2]
[361124830,1747288237112,-219.04759282,0.00024876,2]
[361124831,1747288237121,-450.0,0.00024876,2]
[361124832,1747288237131,-450.0,0.00024876,2]
[361124833,1747288237140,-450.0,0.00024876,2]
[361124834,1747288237150,-450.0,0.00024876,2]
[361124835,1747288237159,-450.0,0.00024876,2]
[361124836,1747288237168,-450.0,0.00024876,2]
[361124837,1747288237177,-450.0,0.00024876,2]
[361124838,1747288237187,-450.0,0.00024876,2]
[361124839,1747288237197,-450.0,0.00024876,2]
[361124840,1747288237207,-382.93605874,0.00024876,2]
[361124841,1747288237217,-450.0,0.00024876,2]
[361124842,1747288237226,-450.0,0.00024876,2]
[361124843,1747288237236,-450.0,0.00024876,2]
[361124844,1747288237245,-450.0,0.00024876,2]
[361124845,1747288237256,-461.30662359,0.00024876,2]
[361124846,1747288237266,-151.0,0.00024876,2]
[361124847,1747288237276,-450.0,0.00024876,2]
[361124848,1747288237285,-245.33727176,0.00024876,2]
[361124849,1747288237295,-450.0,0.00024876,2]
[361124850,1747288237304,-260.49765971,0.00024876,2]
[361124851,1747288237314,-314.14264519,0.00024876,2]
[361124852,1747288237324,-457.35481284,0.00024876,2]
[361124853,1747288237334,-446.63479568,0.00024876,2]
[361124854,1747288237344,-450.0,0.00024876,2]
[361124855,1747288237353,-433.1050346,0.00024876,2]
[361124856,1747288237364,-450.0,0.00024876,2]
[361124857,1747288237373,-450.0,0.00024876,2]
[361124858,1747288237382,-450.0,0.00024876,2]
[361124859,1747288237392,-450.0,0.00024876,2]
[361124860,1747288237401,-450.0,0.00024876,2]
[361124861,1747288237411,-450.0,0.00024876,2]
[361124862,1747288237627,-450.0,0.00024876,2]
[361124863,1747288237637,-709.15,0.00024876,2]
[361124864,1747288237646,-450.0,0.00024876,2]
[361124865,1747288237656,-450.0,0.00024876,2]
[361124866,1747288237666,-450.0,0.00024876,2]
[361124867,1747288237675,-450.0,0.00024876,2]
[361124868,1747288237685,-450.0,0.00024876,2]
[361124869,1747288237695,-450.0,0.00024876,2]
[361124870,1747288237704,-450.0,0.00024876,2]
[361124871,1747288237713,-450.0,0.00024876,2]
[361124872,1747288237724,-450.0,0.00024876,2]
[361124873,1747288237733,-450.0,0.00024876,2]
[361124874,1747288237742,-450.0,0.00024876,2]
[361124875,1747288237752,-450.0,0.00024876,2]
[361124876,1747288237761,-578.87,0.00024876,2]
[361124877,1747288237770,-226.23740495,0.00024876,2]
[361124878,1747288237779,-450.0,0.00024876,2]
[361124879,1747288237788,-450.0,0.00024876,2]
[361124880,1747288237798,-450.0,0.00024876,2]
[361124881,1747288237807,-450.0,0.00024876,2]
[361124882,1747288237816,-450.0,0.00024876,2]
[361124883,1747288237826,-450.0,0.00024876,2]
[361124884,1747288237836,-450.0,0.00024876,2]
[361124885,1747288237846,-450.0,0.00024876,2]
[361124886,1747288237857,-450.0,0.00024876,2]
[361124887,1747288237868,-450.0,0.00024876,2]
[361124888,1747288237877,-450.0,0.00024876,2]
[361124889,1747288237886,-450.0,0.00024876,2]
[361124890,1747288237896,-450.0,0.00024876,2]
[361124891,1747288237905,-450.0,0.00024876,2]
[361124892,1747288237915,-450.0,0.00024876,2]
[361124893,1747288237924,-430.22767911,0.00024876,2]
[361124894,1747288237933,-450.0,0.00024876,2]
[361124895,1747288237944,-450.0,0.00024876,2]
[361124896,1747288237953,-450.0,0.00024876,2]
[361124897,1747288237963,-450.0,0.00024876,2]
[361124898,1747288237973,-450.0,0.00024876,2]
[361124899,1747288237984,-450.0,0.00024876,2]
[361124900,1747288237993,-450.0,0.00024876,2]
[361124901,1747288238002,-450.0,0.00024876,2]
[361124902,1747288238012,-450.0,0.00024876,2]
[361124903,1747288238021,-450.0,0.00024876,2]
[361124904,1747288238030,-1978.2,0.00024876,2]
[361124905,1747288238040,-450.0,0.00024876,2]
[361124906,1747288238049,-450.0,0.00024876,2]
[361124907,1747288238063,-450.0,0.00024876,2]
[361124908,1747288238073,-450.0,0.00024876,2]
[361124909,1747288238083,-450.0,0.00024876,2]
[361124910,1747288238093,-450.0,0.00024876,2]
[361124911,1747288238103,-745.19,0.00024876,2]
[361124912,1747288238112,-189811.412904,0.000249,2]
[361124913,1747288238122,-151.0,0.00024903,2]
[361124914,1747288238132,-151.0,0.00024931,2]
[361124915,1747288238141,-284.45182743,0.00024958,2]
[361124916,1747288238151,-500.0,0.00024973,2]
[361124917,1747288238161,-37962.2825809,0.00024976,2]
[361124918,1747288238170,-412.2457194,0.00024986,2]
[361124919,1747288238180,-292.01093269,0.00024986,2]
[361124920,1747288238190,-450.0,0.00024986,2]
[361124922,1747288238200,-450.0,0.00024986,2]
[361124924,1747288238210,-450.0,0.00024986,2]
[361124926,1747288238219,-450.0,0.00024986,2]
[361124928,1747288238228,-350.47711033,0.00024986,2]
[361124929,1747288238237,-574.71762097,0.00024986,2]
[361124931,1747288238247,-450.0,0.00024986,2]
[361124932,1747288238256,-450.0,0.00024986,2]
[361124933,1747288238266,-450.0,0.00024986,2]
[361124935,1747288238275,-450.0,0.00024986,2]
[361124937,1747288238285,-309.75719312,0.00024986,2]
[361124939,1747288238295,-450.0,0.00024986,2]
[361124941,1747288238304,-450.0,0.00024986,2]
[361124943,1747288238314,-450.0,0.00024986,2]
[361124945,1747288238324,-450.0,0.00024986,2]
[361124946,1747288238333,-450.0,0.00024986,2]
[361124947,1747288238343,-591.775318,0.00024986,2]
[361124948,1747288238352,-450.0,0.00024986,2]
[361124949,1747288238362,-450.0,0.00024986,2]
[361124950,1747288238487,-396.46818114,0.00024986,2]
[361124951,1747288238497,-450.0,0.00024986,2]
[361124952,1747288238507,-450.0,0.00024986,2]
[361124953,1747288238517,-450.0,0.00024986,2]
[361124954,1747288238527,-450.0,0.00024986,2]
[361124955,1747288238537,-450.0,0.00024986,2]
[361124956,1747288238547,-709.15,0.00024986,2]
[361124957,1747288238558,-450.0,0.00024986,2]
[361124958,1747288238568,-437.80987233,0.00024986,2]
[361124959,1747288238578,-450.0,0.00024986,2]
[361124960,1747288238587,-450.0,0.00024986,2]
[361124962,1747288238597,-450.0,0.00024986,2]
[361124963,1747288238608,-450.0,0.00024986,2]
[361124964,1747288238618,-167.57159458,0.00024986,2]
[361124965,1747288238628,-450.0,0.00024986,2]
[361124966,1747288238637,-450.0,0.00024986,2]
[361124967,1747288238647,-450.0,0.00024986,2]
[361124969,1747288238656,-450.0,0.00024986,2]
[361124970,1747288238666,-450.0,0.00024986,2]
[361124972,1747288238676,-578.87,0.00024986,2]
[361124974,1747288238686,-468.26355631,0.00024986,2]
[361124976,1747288238696,-450.0,0.00024986,2]
[361124978,1747288238705,-395.20876982,0.00024986,2]
[361124980,1747288238714,-555.8944035,0.00024986,2]
[361124982,1747288238724,-450.0,0.00024986,2]
[361124984,1747288238733,-450.0,0.00024986,2]
[361124986,1747288238742,-397.89461223,0.00024986,2]
[361124988,1747288238751,-450.0,0.00024986,2]
[361124990,1747288238760,-454.49273486,0.00024986,2]
[361124992,1747288238769,-450.0,0.00024986,2]
[361124994,1747288238779,-450.0,0.00024986,2]
[361124996,1747288238788,-450.0,0.00024986,2]
[361124998,1747288238798,-450.0,0.00024986,2]
[361125000,1747288238807,-175.33,0.00024986,2]
[361125002,1747288238817,-450.0,0.00024986,2]
[361125004,1747288238826,-450.0,0.00024986,2]
[361125006,1747288238836,-450.0,0.00024986,2]
[361125008,1747288238846,-450.0,0.00024986,2]
[361125010,1747288238856,-450.0,0.00024986,2]
[361125012,1747288238865,-461.08511713,0.00024986,2]
[361125014,1747288238874,-450.0,0.00024986,2]
[361125017,1747288238883,-450.0,0.00024986,2]
[361125019,1747288238892,-276.25578859,0.00024986,2]
[361125021,1747288238901,-450.0,0.00024986,2]
[361125024,1747288238910,-450.0,0.00024986,2]
[361125027,1747288238920,-1978.2,0.00024986,2]
[361125029,1747288238929,-450.0,0.00024986,2]
[361125031,1747288238939,-450.0,0.00024986,2]
[361125033,1747288238948,-450.0,0.00024986,2]
[361125035,1747288238957,-450.0,0.00024986,2]
[361125036,1747288238968,-450.0,0.00024986,2]
[361125038,1747288238980,-288.63801601,0.00024986,2]
[361125040,1747288238989,-745.19,0.00024986,2]
[361125042,1747288238999,-152.528856,0.0002499,7]
[361125044,1747288239011,-152.528856,0.0002499,7]
[361125046,1747288239020,-151.0,0.0002499,7]
[361125048,1747288239029,-151.0,0.0002499,7]
[361125050,1747288239039,-172.015517,0.0002499,7]
[361125052,1747288239049,-37962.2825809,0.0002499,2]
[361125054,1747288239058,-151.0,0.0002499,7]
[361125056,1747288239068,-151.0,0.0002499,7]
[361125058,1747288239077,-75807.69741581,0.00025,2]
[361125256,1747288241043,-432.39616169,0.00020622,2]
[361125258,1747288241054,-18.16557743,0.00020622,2]
[361125990,1747289284881,250.85,0.00015,2]
[361126124,1747289440087,-2543.69999999,0.00018096,2]
[361126132,1747289440145,-253.00448904,0.00018096,2]
[361126230,1747289444247,-2203.29551097,0.00018096,2]
[361126231,1747289444257,-1492.70473267,0.000199,2]
[361126232,1747289444267,-1492.70473249,0.0002021,2]
[361126233,1747289444276,-160.0,0.00020415,2]
[361126234,1747289444286,-160.0,0.00020415,2]
[361126235,1747289444296,-300.0,0.0002052,2]
[361126236,1747289444305,-1492.70473249,0.00020521,3]
[361126237,1747289444315,-359.88715057,0.00020529,2]
[361126238,1747289444324,-1492.70473249,0.00020831,4]
[361126239,1747289444334,-556.44424516,0.00020959,2]
[361126240,1747289444343,-3000.0,0.00021,2]
[361126241,1747289444353,-3000.0,0.0002101,2]
[361126242,1747289444364,-3000.0,0.0002102,2]
[361126243,1747289444373,-3000.0,0.0002103,2]
[361126244,1747289444382,-3000.0,0.0002104,2]
[361126245,1747289444392,-364.90175414,0.00021049,2]
[361126246,1747289444401,-242.03794386,0.00021049,2]
[361126247,1747289444411,-3000.0,0.0002105,2]
[361126248,1747289444421,-3000.0,0.0002106,2]
[361126249,1747289444430,-3000.0,0.0002107,2]
[361126250,1747289444440,-3000.0,0.0002108,2]
[361126251,1747289444450,-3000.0,0.0002109,2]
[361126252,1747289444460,-3000.0,0.000211,2]
[361126253,1747289444470,-3000.0,0.0002111,2]
[361126254,1747289444482,-606.7508507,0.0002111,2]
[361126255,1747289444491,-3000.0,0.0002112,2]
[361126256,1747289444501,-3000.0,0.0002113,2]
[361126258,1747289444511,-3000.0,0.0002114,2]
[361126260,1747289444521,-1492.70473249,0.00021141,4]
[361126261,1747289444531,-3000.0,0.0002115,2]
[361126262,1747289444541,-500.0,0.00021154,2]
[361126263,1747289444551,-302.67731318,0.00021154,2]
[361126264,1747289444561,-500.0,0.00021154,2]
[361126265,1747289444571,-500.0,0.00021154,2]
[361126266,1747289444580,-500.0,0.00021154,2]
[361126267,1747289444595,-500.0,0.00021154,2]
[361126268,1747289444608,-500.0,0.00021154,2]
[361126269,1747289444621,-500.0,0.00021154,2]
[361126270,1747289444634,-423.50547429,0.00021154,2]
[361126271,1747289444647,-500.0,0.00021154,2]
[361126272,1747289444659,-500.0,0.00021154,2]
[361126273,1747289444670,-557.77807168,0.00021154,2]
[361126274,1747289444684,-500.0,0.00021154,2]
[361126275,1747289444695,-500.0,0.00021154,2]
[361126276,1747289444708,-500.0,0.00021154,2]
[361126277,1747289444721,-500.0,0.00021154,2]
[361126278,1747289444734,-500.0,0.00021154,2]
[361126279,1747289444745,-500.0,0.00021154,2]
[361126280,1747289444758,-3000.0,0.0002116,2]
[361126281,1747289444770,-3000.0,0.0002117,2]
[361126282,1747289444781,-3000.0,0.0002118,2]
[361126283,1747289444793,-3000.0,0.0002119,2]
[361126284,1747289444805,-501.15338971,0.000212,2]
[361126285,1747289444816,-3000.0,0.000212,2]
[361126286,1747289444828,-3000.0,0.0002121,2]
[361126287,1747289444840,-3000.0,0.0002122,2]
[361126288,1747289444853,-3000.0,0.0002123,2]
[361126289,1747289444865,-3000.0,0.0002124,2]
[361126290,1747289444876,-3000.0,0.0002125,2]
[361126291,1747289444888,-3000.0,0.0002126,2]
[361126292,1747289444898,-96.31572461,0.0002127,2]
[361126433,1747290522232,805.08089597,0.00014,30]
[361126484,1747290632208,-5000.0,0.00017468,2]
[361126486,1747290632218,-196.11637398,0.00018438,3]
[361126489,1747290632230,-1944.73891814,0.000189,2]
[361126490,1747290632240,-1000.0,0.00019,2]
[361126491,1747290632250,-187.0,0.00019244,2]
[361126492,1747290632260,-1944.73891786,0.00019245,2]
[361126493,1747290632271,-406.357,0.00019368,2]
[361126494,1747290632284,-1944.73891786,0.0001959,2]
[361126495,1747290632296,-1944.73891786,0.00019934,2]
[361126496,1747290632309,-1944.73891786,0.00020279,3]
[361126497,1747290632322,-1944.73891786,0.00020624,3]
[361126498,1747290632334,-160.0,0.00020914,2]
[361126499,1747290632345,-160.0,0.00020914,2]
[361126500,1747290632355,-160.0,0.00020915,2]
[361126501,1747290632366,-1944.73891786,0.00020969,4]
[361126502,1747290632376,-2903.68427539,0.0002127,2]
[361126503,1747290632386,-4772.886762,0.0002128,2]
[361126504,1747290632396,-164.471,0.00021313,2]
[361126505,1747290632407,-1944.73891786,0.00021314,5]
[361126506,1747290632417,-486.88871448,0.00021316,2]
[361126507,1747290632428,-2000.00083938,0.00021416,2]
[361126508,1747290632438,-1944.73891786,0.00021659,5]
[361126509,1747290632450,-5000.0,0.00021902,2]
[361126510,1747290632460,-1944.73891786,0.00022003,6]
[361126511,1747290632469,-259.31584872,0.00022314,2]
[361126531,1747290638078,-500.0,0.00021307,2]
[361126533,1747290638090,-227.57286574,0.00022314,2]
[361126535,1747290638106,-1944.73891786,0.00022348,7]
[361126537,1747290638118,-79.61323315,0.00022368,2]
[361126540,1747290638133,-324.38676685,0.00022368,2]
[361126541,1747290638145,-55.11484196,0.0002245,2]
[361126628,1747291425604,196.0,0.00015,2]
[361126652,1747291837639,-379.42100616,0.00015978,2]
[361126653,1747291837652,-4620.57899384,0.00015978,2]
[361126654,1747291837662,-298.554,0.00016139,2]
[361126655,1747291837671,-4347.89559771,0.000169,2]
[361126657,1747291837681,-300.0,0.00017311,2]
[361126658,1747291837691,-300.0,0.00017312,2]
[361126659,1747291837704,-300.0,0.00017312,2]
[361126660,1747291837714,-300.0,0.00017312,2]
[361126661,1747291837724,-4347.89559762,0.00017314,2]
[361126662,1747291837734,-2068.07581083,0.00017728,2]
[361126722,1747291840489,-339.63093284,0.00015818,2]
[361126740,1747291845731,-4660.36906716,0.00015818,2]
[361126742,1747291845743,-2279.81978679,0.00017728,2]
[361126744,1747291845752,-4347.89559762,0.00018141,2]
[361126746,1747291845761,-4347.89559762,0.00018555,2]
[361126747,1747291845771,-317.69278096,0.00018899,2]
[361126748,1747291845781,-303.37674201,0.00018899,2]
[361126749,1747291845792,-438.57062243,0.000189,2]
[361126750,1747291845802,-420.0,0.00018901,2]
[361126751,1747291845812,-420.0,0.00018903,2]
[361126752,1747291845821,-4347.89559762,0.00018969,2]
[361126753,1747291845831,-195.67412024,0.00019068,3]
[361126754,1747291845840,-4347.89559762,0.00019383,2]
[361126755,1747291845850,-707.434,0.00019631,2]
[361126756,1747291845860,-2237.0,0.00019631,2]
[361126757,1747291845869,-4347.89559762,0.00019797,2]
[361126758,1747291845879,-702.2085383,0.00019942,2]
[361126759,1747291845888,-196.0,0.0001999,3]
[361126760,1747291845898,-196.0,0.0001999,3]
[361126762,1747291845907,-194.44125814,0.0002021,2]
[361126763,1747291845917,-4347.89559762,0.0002021,2]
[361126764,1747291845927,-207.4,0.00020223,2]
[361126766,1747291845936,-4347.89559762,0.00020624,3]
[361126769,1747291845945,-587.0,0.00020638,2]
[361126772,1747291845954,-587.0,0.00020639,2]
[361126775,1747291845964,-160.0,0.00020948,2]
[361126777,1747291845973,-160.0,0.00020948,2]
[361126779,1747291845982,-200.0,0.00021,5]
[361126782,1747291845992,-200.48656884,0.00021,5]
[361126784,1747291846002,-501.41186981,0.00021008,2]
[361126786,1747291846011,-4347.89559762,0.00021038,4]
[361126788,1747291846021,-4347.89559762,0.00021452,5]
[361126790,1747291846030,-215.0738,0.00021592,2]
[361126791,1747291846039,-500.0,0.00021799,2]
[361126792,1747291846049,-494.03155527,0.00021799,2]
[361126793,1747291846058,-500.0,0.00021799,2]
[361126794,1747291846067,-500.0,0.00021799,2]
[361126795,1747291846077,-500.0,0.00021799,2]
[361126796,1747291846086,-500.0,0.00021799,2]
[361126797,1747291846096,-500.0,0.00021799,2]
[361126798,1747291846106,-500.0,0.00021799,2]
[361126799,1747291846115,-500.0,0.00021799,2]
[361126800,1747291846125,-500.0,0.00021799,2]
[361126801,1747291846135,-500.0,0.00021799,2]
[361126802,1747291846144,-500.0,0.00021799,2]
[361126803,1747291846153,-500.0,0.00021799,2]
[361126804,1747291846163,-500.0,0.00021799,2]
[361126805,1747291846172,-500.0,0.00021799,2]
[361126806,1747291846181,-285.46485568,0.00021799,2]
[361126807,1747291846190,-500.0,0.00021799,2]
[361126808,1747291846200,-500.0,0.00021799,2]
[361126809,1747291846209,-500.0,0.00021799,2]
[361126810,1747291846219,-500.0,0.00021799,2]
[361126811,1747291846229,-889.90124768,0.000218,2]
[361126812,1747291846238,-4347.89559762,0.00021866,6]
[361126813,1747291846247,-151.0,0.000219,4]
[361126814,1747291846256,-4987.45516644,0.00021904,2]
[361126815,1747291846266,-198.2811549,0.00021904,2]
[361126816,1747291846275,-313.9,0.00021907,3]
[361126817,1747291846285,-4404.76,0.00021917,2]
[361126818,1747291846295,-4404.76,0.00021917,2]
[361126819,1747291846305,-2877.30683583,0.00021917,2]
[361126820,1747291846317,-1527.45316417,0.00021917,2]
[361126821,1747291846327,-4404.76,0.00021917,2]
[361126822,1747291846336,-4404.76,0.00021917,2]
[361126823,1747291846346,-4404.76,0.00021917,2]
[361126824,1747291846356,-4404.76,0.00021917,2]
[361126825,1747291846366,-4404.76,0.00021917,2]
[361126826,1747291846375,-4404.76,0.00021917,2]
[361126827,1747291846384,-4404.76,0.00021917,2]
[361126829,1747291846393,-4404.76,0.00021917,2]
[361126831,1747291846403,-4404.76,0.00021917,2]
[361126832,1747291846413,-4404.76,0.00021917,2]
[361126833,1747291846423,-4404.76,0.00021917,2]
[361126834,1747291846433,-4404.76,0.00021917,2]
[361126835,1747291846442,-4404.76,0.00021917,2]
[361126836,1747291846452,-4404.76,0.00021917,2]
[361126837,1747291846461,-4404.76,0.00021917,2]
[361126838,1747291846472,-4404.76,0.00021917,2]
[361126839,1747291846482,-4404.76,0.00021917,2]
[361126840,1747291846491,-4404.76,0.00021917,2]
[361126841,1747291846500,-4404.76,0.00021917,2]
[361126842,1747291846510,-4404.76,0.00021917,2]
[361126843,1747291846521,-4404.78909112,0.00021917,2]
[361126844,1747291846530,-151.0,0.00021917,2]
[361126845,1747291846540,-151.0,0.00021917,2]
[361126846,1747291846549,-324.888616,0.00021917,2]
[361126847,1747291846559,-324.888616,0.00021917,2]
[361126848,1747291846570,-686.321293,0.00021917,2]
[361126849,1747291846579,-686.321293,0.00021917,2]
[361126850,1747291846589,-151.0,0.00021917,2]
[361126851,1747291846599,-151.0,0.00021917,2]
[361126852,1747291846608,-357.589498,0.00021917,2]
[361126853,1747291846618,-357.589498,0.00021917,2]
[361126854,1747291846630,-196.648878,0.00021917,2]
[361126855,1747291846641,-196.648878,0.00021917,2]
[361126856,1747291846651,-223.410133,0.00021917,2]
[361126857,1747291846660,-223.410133,0.00021917,2]
[361126858,1747291846669,-500.0,0.0002195,2]
[361126859,1747291846679,-500.0,0.00021973,2]
[361126860,1747291846688,-500.0,0.00021973,2]
[361126861,1747291846701,-500.0,0.00021973,2]
[361126862,1747291846710,-500.0,0.00021973,2]
[361126863,1747291846719,-500.0,0.00021973,2]
[361126864,1747291846729,-500.0,0.00021973,2]
[361126865,1747291846738,-500.0,0.00021973,2]
[361126866,1747291846747,-500.0,0.00021973,2]
[361126867,1747291846757,-500.0,0.00021973,2]
[361126868,1747291846767,-500.0,0.00021973,2]
[361126869,1747291846776,-500.0,0.00021973,2]
[361126870,1747291846785,-196.0,0.00022,2]
[361126871,1747291846795,-196.0,0.00022,5]
[361126872,1747291846804,-196.0,0.00022,5]
[361126873,1747291846814,-196.0,0.00022,7]
[361126874,1747291846824,-589.27,0.00022,7]
[361126875,1747291846833,-160.0,0.00022072,2]
[361126876,1747291846843,-151.0,0.000221,7]
[361126877,1747291846854,-1180.54560437,0.00022126,2]
[361126878,1747291846863,-22276.24345842,0.0002216,2]
[361126879,1747291846872,-160.0,0.00022161,2]
[361126880,1747291846882,-4347.89559762,0.00022279,6]
[361126881,1747291846891,-151.0,0.000223,6]
[361126882,1747291846900,-151.0,0.000223,7]
[361126883,1747291846909,-160.557642,0.000223,7]
[361126884,1747291846918,-889.90124767,0.00022325,2]
[361126885,1747291846927,-178.2662318,0.00022437,2]
[361126886,1747291846937,-164.471,0.00022449,2]
[361126887,1747291846946,-1009.66113954,0.00022498,2]
[361126888,1747291846955,-151.0,0.000225,9]
[361126889,1747291846966,-500.88088065,0.00022521,2]
[361126890,1747291846975,-504.91886055,0.00022521,2]
[361126891,1747291846985,-503.6051023,0.00022521,2]
[361126892,1747291846995,-1000.0,0.00022521,2]
[361126893,1747291847005,-503.88981862,0.00022521,2]
[361126894,1747291847015,-507.42785689,0.00022521,2]
[361126895,1747291847026,-1000.0,0.00022521,2]
[361126896,1747291847038,-1000.0,0.00022521,2]
[361126897,1747291847048,-223.410133,0.00022521,7]
[361126898,1747291847057,-223.410133,0.00022521,7]
[361126899,1747291847067,-425.0,0.00022534,2]
[361126900,1747291847079,-823.0,0.00022535,2]
[361126901,1747291847088,-151.0,0.00022631,7]
[361126902,1747291847099,-152.600815,0.00022631,7]
[361126903,1747291847108,-357.589498,0.00022631,7]
[361126904,1747291847117,-357.589498,0.00022631,7]
[361126905,1747291847126,-196.648878,0.00022631,2]
[361126906,1747291847135,-196.648878,0.00022631,2]
[361126907,1747291847145,-707.0,0.00022631,2]
[361126908,1747291847154,-2213.711,0.00022631,2]
[361126909,1747291847163,-151.0,0.00022693,7]
[361126910,1747291847172,-151.0,0.00022693,7]
[361126911,1747291847181,-151.0,0.00022693,7]
[361126912,1747291847190,-485.142084,0.00022693,7]
[361126913,1747291847199,-485.142084,0.00022693,7]
[361126914,1747291847207,-4347.89559762,0.00022693,7]
[361126915,1747291847217,-151.0,0.000227,9]
[361126916,1747291847226,-889.90124767,0.0002285,2]
[361126917,1747291847235,-282.31727984,0.00022961,2]
[361126918,1747291847244,-151.0,0.00023,9]
[361126919,1747291847255,-320.0,0.00023,10]
[361126920,1747291847264,-326.64460221,0.00023068,2]
[361126921,1747291847273,-846.58353785,0.00023068,2]
[361126922,1747291847283,-1500.0,0.00023068,2]
[361126923,1747291847292,-4347.89559762,0.00023107,8]
[361126924,1747291847301,-151.0,0.000232,7]
[361126925,1747291847311,-889.90124767,0.00023375,2]
[361126926,1747291847322,-151.0,0.000234,9]
[361126927,1747291847331,-500.0,0.0002342,9]
[361126928,1747291847341,-4347.89559762,0.00023521,9]
[361126929,1747291847352,-151.0,0.00023521,7]
[361126930,1747291847362,-151.0,0.00023521,7]
[361126931,1747291847372,-324.888616,0.00023521,7]
[361126932,1747291847381,-324.888616,0.00023521,7]
[361126933,1747291847391,-686.321293,0.00023521,7]
[361126934,1747291847400,-686.321293,0.00023521,7]
[361126935,1747291847409,-151.0,0.00023521,7]
[361126936,1747291847419,-151.0,0.00023521,7]